fUSD/lending_fUSD_20250202
["ID","MTS","AMOUNT","RATE_DAILY","PERIOD"]
[351277973,1738505493961,-1377.07,0.00011643,2]
[351277974,1738505493971,-3478.77,0.00011643,2]
[351277975,1738505493982,-500.0,0.00011643,2]
[351277976,1738505493992,-1559.79,0.00011643,2]
[351277977,1738505494002,-528.25893125,0.00011643,2]
[351277978,1738505494012,-993.51,0.00011643,2]
[351277979,1738505494023,-532.1,0.00011643,2]
[351277980,1738505494033,-500.0,0.00011643,2]
[351277981,1738505494042,-1353.14,0.00011643,2]
[351277982,1738505494052,-5584.57,0.00011643,2]
[351277983,1738505494061,-1889.01,0.00011643,2]
[351277984,1738505494071,-500.0,0.00011643,2]
[351277985,1738505494081,-500.0,0.00011643,2]
[351277986,1738505494091,-628.58,0.00011643,2]
[351277987,1738505494102,-1706.09,0.00011643,2]
[351277988,1738505494113,-500.0,0.00011643,2]
[351277989,1738505494123,-500.0,0.00011643,2]
[351277990,1738505494133,-966.92,0.00011643,2]
[351277991,1738505494144,-1416.56,0.00011643,2]
[351277992,1738505494154,-820.07,0.00011643,2]
[351277993,1738505494164,-865.01,0.00011643,2]
[351277994,1738505494175,-555.56,0.00011643,2]
[351277995,1738505494185,-500.0,0.00011643,2]
[351277996,1738505494194,-6599.2,0.00011643,2]
[351277997,1738505494207,-500.0,0.00011643,2]
[351277998,1738505494218,-500.0,0.00011643,2]
[351277999,1738505494228,-4362.97,0.00011643,2]
[351278000,1738505494238,-1475.65,0.00011643,2]
[351278001,1738505494248,-3023.49,0.00011643,2]
[351278002,1738505494259,-500.0,0.00011643,2]
[351278003,1738505494269,-1337.09,0.00011643,2]
[351278004,1738505494279,-786.41,0.00011643,2]
[351278005,1738505494290,-1205.96,0.00011643,2]
[351278006,1738505494301,-1903.11,0.00011643,2]
[351278007,1738505494311,-2817.82,0.00011643,2]
[351278008,1738505494321,-2360.45,0.00011643,2]
[351278009,1738505494331,-500.0,0.00011643,2]
[351278010,1738505494341,-508.24681803,0.00011643,2]
[351278011,1738505494350,-583.26,0.00011643,2]
[351278012,1738505494361,-934.52,0.00011643,2]
[351278013,1738505494372,-1388.22,0.00011643,2]
[351278014,1738505494382,-7826.051899,0.00011643,2]
[351278015,1738505494392,-534.38250719,0.00011643,2]
[351278016,1738505494402,-500.0,0.00011643,2]
[351278017,1738505494412,-2432.51,0.00011643,2]
[351278018,1738505494422,-609.67,0.00011643,2]
[351278019,1738505494432,-2243.95,0.00011643,2]
[351278020,1738505494443,-1262.46,0.00011643,2]
[351278021,1738505494456,-500.0,0.00011643,2]
[351278022,1738505494467,-2572.68,0.00011643,2]
[351278023,1738505494477,-500.0,0.00011643,2]
[351278024,1738505494488,-1181.19,0.00011643,2]
[351278025,1738505494498,-1950.74,0.00011643,2]
[351278026,1738505494509,-500.0,0.00011643,2]
[351278027,1738505494521,-871.86,0.00011643,2]
[351278028,1738505494533,-500.0,0.00011643,2]
[351278029,1738505494543,-500.0,0.00011643,2]
[351278030,1738505494553,-1126.88,0.00011643,2]
[351278031,1738505494565,-2805.0,0.00011643,2]
[351278032,1738505494658,-541.6,0.00011643,2]
[351278033,1738505494667,-476.543439,0.00011643,2]
[351278034,1738505494677,-3490.69,0.00011643,2]
[351278035,1738505494687,-2478.61,0.00011643,2]
[351278036,1738505494697,-1886.99,0.00011643,2]
[351278037,1738505494711,-693.62,0.00011643,2]
[351278038,1738505494721,-1166.42,0.00011643,2]
[351278039,1738505494731,-4718.72,0.00011643,2]
[351278040,1738505494740,-500.0,0.00011643,2]
[351278041,1738505494750,-646.83,0.00011643,2]
[351278042,1738505494760,-500.0,0.00011643,2]
[351278043,1738505494770,-1219.56,0.00011643,2]
[351278044,1738505494780,-500.0,0.00011643,2]
[351278045,1738505494790,-1713.43,0.00011643,2]
[351278046,1738505494800,-500.0,0.00011643,2]
[351278047,1738505494810,-764.96,0.00011643,2]
[351278048,1738505494819,-742.31,0.00011643,2]
[351278049,1738505494828,-585.08,0.00011643,2]
[351278050,1738505494838,-5247.94,0.00011643,2]
[351278051,1738505494848,-1545.21,0.00011643,2]
[351278052,1738505494858,-2240.61,0.00011643,2]
[351278053,1738505494867,-5157.65,0.00011643,2]
[351278054,1738505494877,-500.0,0.00011643,2]
[351278055,1738505494886,-1481.58,0.00011643,2]
[351278056,1738505494896,-535.67,0.00011643,2]
[351278057,1738505494905,-1399.19,0.00011643,2]
[351278058,1738505494915,-1485.26,0.00011643,2]
[351278059,1738505494925,-500.0,0.00011643,2]
[351278060,1738505494935,-3226.98,0.00011643,2]
[351278061,1738505494945,-1311.36,0.00011643,2]
[351278062,1738505494958,-500.0,0.00011643,2]
[351278063,1738505494968,-500.0,0.00011643,2]
[351278064,1738505494978,-5680.36,0.00011643,2]
[351278065,1738505494987,-500.0,0.00011643,2]
[351278066,1738505494997,-2300.21,0.00011643,2]
[351278067,1738505495007,-2521.42,0.00011643,2]
[351278068,1738505495016,-2782.57,0.00011643,2]
[351278069,1738505495026,-1697.0,0.00011643,2]
[351278070,1738505495035,-500.0,0.00011643,2]
[351278071,1738505495045,-500.0,0.00011643,2]
[351278072,1738505495054,-500.0,0.00011643,2]
[351278073,1738505495063,-1766.1,0.00011643,2]
[351278074,1738505495072,-1939.71,0.00011643,2]
[351278075,1738505495082,-500.0,0.00011643,2]
[351278076,1738505495091,-787.48,0.00011643,2]
[351278077,1738505495100,-1300.79,0.00011643,2]
[351278078,1738505495110,-3484.78,0.00011643,2]
[351278079,1738505495119,-500.0,0.00011643,2]
[351278080,1738505495128,-512.49,0.00011643,2]
[351278081,1738505495137,-500.0,0.00011643,2]
[351278082,1738505495146,-1213.23,0.00011643,2]
[351278083,1738505495155,-504.28792817,0.00011643,2]
[351278084,1738505495165,-5629.82,0.00011643,2]
[351278085,1738505495174,-2449.26,0.00011643,2]
[351278086,1738505495183,-758.01,0.00011643,2]
[351278087,1738505495193,-500.0,0.00011643,2]
[351278088,1738505495204,-848.99,0.00011643,2]
[351278089,1738505495214,-888.7,0.00011643,2]
[351278090,1738505495223,-500.0,0.00011643,2]
[351278091,1738505495232,-4605.95,0.00011643,2]
[351278092,1738505495241,-2359.63,0.00011643,2]
[351278093,1738505495250,-892.49,0.00011643,2]
[351278094,1738505495260,-871.23,0.00011643,2]
[351278095,1738505495269,-1094.04,0.00011643,2]
[351278096,1738505495278,-6442.67,0.00011643,2]
[351278097,1738505495287,-500.0,0.00011643,2]
[351278098,1738505495296,-1297.27,0.00011643,2]
[351278099,1738505495306,-2052.81,0.00011643,2]
[351278100,1738505495315,-500.0,0.00011643,2]
[351278101,1738505495324,-2655.71,0.00011643,2]
[351278102,1738505495333,-1885.94,0.00011643,2]
[351278103,1738505495343,-500.0,0.00011643,2]
[351278104,1738505495352,-500.0,0.00011643,2]
[351278105,1738505495362,-500.0,0.00011643,2]
[351278106,1738505495372,-10441.41,0.00011643,2]
[351278107,1738505495381,-1553.08,0.00011643,2]
[351278108,1738505495391,-500.0,0.00011643,2]
[351278109,1738505495400,-1012.3,0.00011643,2]
[351278110,1738505495410,-500.0,0.00011643,2]
[351278111,1738505495419,-4514.04,0.00011643,2]
[351278112,1738505495429,-3003.61,0.00011643,2]
[351278113,1738505495439,-2902.94,0.00011643,2]
[351278114,1738505495448,-1964.45,0.00011643,2]
[351278115,1738505495460,-4716.6,0.00011643,2]
[351278116,1738505495470,-500.0,0.00011643,2]
[351278117,1738505495480,-1593.35,0.00011643,2]
[351278118,1738505495489,-508.61063116,0.00011643,2]
[351278119,1738505495499,-500.0,0.00011643,2]
[351278120,1738505495509,-1637.22,0.00011643,2]
[351278121,1738505495518,-3416.51,0.00011643,2]
[351278122,1738505495533,-882.55,0.00011643,2]
[351278123,1738505495543,-500.0,0.00011643,2]
[351278124,1738505495553,-500.0,0.00011643,2]
[351278125,1738505495563,-4127.67,0.00011643,2]
[351278126,1738505495573,-9172.95,0.00011643,2]
[351278127,1738505495582,-716.69,0.00011643,2]
[351278128,1738505495592,-500.0,0.00011643,2]
[351278129,1738505495602,-500.0,0.00011643,2]
[351278130,1738505495612,-500.0,0.00011643,2]
[351278131,1738505495621,-3935.05,0.00011643,2]
[351278132,1738505495631,-994.51,0.00011643,2]
[351278133,1738505495641,-500.0,0.00011643,2]
[351278134,1738505495651,-2231.33,0.00011643,2]
[351278135,1738505495660,-500.0,0.00011643,2]
[351278136,1738505495670,-646.36,0.00011643,2]
[351278137,1738505495679,-612.75,0.00011643,2]
[351278138,1738505495689,-7703.46,0.00011643,2]
[351278139,1738505495698,-6130.86,0.00011643,2]
[351278140,1738505495709,-1008.29,0.00011643,2]
[351278141,1738505495719,-4888.75,0.00011643,2]
[351278142,1738505495728,-4468.98,0.00011643,2]
[351278143,1738505495737,-874.52,0.00011643,2]
[351278144,1738505495747,-500.0,0.00011643,2]
[351278145,1738505495756,-7017.85,0.00011643,2]
[351278146,1738505495765,-7067.83,0.00011643,2]
[351278147,1738505495774,-500.0,0.00011643,2]
[351278148,1738505495784,-504.51,0.00011643,2]
[351278149,1738505495794,-1694.57,0.00011643,2]
[351278150,1738505495803,-500.0,0.00011643,2]
[351278151,1738505495812,-1463.68,0.00011643,2]
[351278152,1738505495821,-809.09,0.00011643,2]
[351278153,1738505495830,-500.0,0.00011643,2]
[351278154,1738505495840,-500.0,0.00011643,2]
[351278155,1738505495849,-957.1,0.00011643,2]
[351278156,1738505495859,-500.0,0.00011643,2]
[351278157,1738505495869,-25450.62,0.00011643,2]
[351278158,1738505495879,-5901.35,0.00011643,2]
[351278159,1738505495889,-972.11,0.00011643,2]
[351278160,1738505495898,-3194.77,0.00011643,2]
[351278161,1738505495907,-500.0,0.00011643,2]
[351278162,1738505495917,-500.0,0.00011643,2]
[351278163,1738505495926,-978.28,0.00011643,2]
[351278164,1738505495936,-1927.34,0.00011643,2]
[351278165,1738505495946,-1313.38,0.00011643,2]
[351278166,1738505495957,-2290.65,0.00011643,2]
[351278167,1738505495966,-1822.98,0.00011643,2]
[351278168,1738505495975,-500.0,0.00011643,2]
[351278169,1738505495985,-500.0,0.00011643,2]
[351278170,1738505495994,-500.0,0.00011643,2]
[351278171,1738505496003,-778.33,0.00011643,2]
[351278172,1738505496013,-2811.74,0.00011643,2]
[351278173,1738505496022,-500.0,0.00011643,2]
[351278174,1738505496032,-500.0,0.00011643,2]
[351278175,1738505496042,-4241.49,0.00011643,2]
[351278176,1738505496051,-500.0,0.00011643,2]
[351278177,1738505496061,-2753.15,0.00011643,2]
[351278178,1738505496071,-3179.79,0.00011643,2]
[351278179,1738505496080,-11875.49,0.00011643,2]
[351278180,1738505496090,-590.79,0.00011643,2]
[351278181,1738505496099,-500.0,0.00011643,2]
[351278182,1738505496109,-2422.99,0.00011643,2]
[351278183,1738505496118,-1805.01,0.00011643,2]
[351278184,1738505496127,-500.0,0.00011643,2]
[351278185,1738505496137,-500.0,0.00011643,2]
[351278186,1738505496146,-500.0,0.00011643,2]
[351278187,1738505496155,-1720.61,0.00011643,2]
[351278188,1738505496165,-8941.69,0.00011643,2]
[351278189,1738505496174,-890.83,0.00011643,2]
[351278190,1738505496183,-500.0,0.00011643,2]
[351278191,1738505496193,-500.0,0.00011643,2]
[351278192,1738505496203,-924.98,0.00011643,2]
[351278193,1738505496213,-2796.09,0.00011643,2]
[351278194,1738505496222,-753.96,0.00011643,2]
[351278195,1738505496232,-2827.17,0.00011643,2]
[351278196,1738505496243,-1515.55,0.00011643,2]
[351278197,1738505496253,-500.0,0.00011643,2]
[351278198,1738505496262,-500.0,0.00011643,2]
[351278199,1738505496273,-8022.15,0.00011643,2]
[351278200,1738505496282,-500.0,0.00011643,2]
[351278201,1738505496292,-1171.94,0.00011643,2]
[351278202,1738505496301,-741.26,0.00011643,2]
[351278203,1738505496311,-1314.16,0.00011643,2]
[351278204,1738505496320,-500.0,0.00011643,2]
[351278205,1738505496330,-500.0,0.00011643,2]
[351278206,1738505496340,-500.0,0.00011643,2]
[351278207,1738505496351,-596.08,0.00011643,2]
[351278208,1738505496361,-2587.99,0.00011643,2]
[351278209,1738505496372,-500.0,0.00011643,2]
[351278210,1738505496383,-770.44,0.00011643,2]
[351278211,1738505496393,-3707.36,0.00011643,2]
[351278212,1738505496403,-500.0,0.00011643,2]
[351278213,1738505496413,-500.0,0.00011643,2]
[351278214,1738505496422,-651.22,0.00011643,2]
[351278215,1738505496432,-500.0,0.00011643,2]
[351278216,1738505496442,-500.0,0.00011643,2]
[351278217,1738505496454,-911.3790031,0.00011662,2]
[351278218,1738505496464,-151.26148529,0.00011673,2]
[351278219,1738505496474,-500.0,0.00011673,2]
[351278220,1738505496484,-500.0,0.00011673,2]
[351278221,1738505496494,-500.0,0.00011673,2]
[351278222,1738505496504,-152.26116441,0.00011673,2]
[351278223,1738505496514,-156.74636071,0.00011673,2]
[351278224,1738505496525,-208.33333,0.0001168,2]
[351278225,1738505496537,-639.94,0.00011692,2]
[351278226,1738505496547,-900.0,0.000117,4]
[351278227,1738505496557,-206.75551577,0.00011749,2]
[351278228,1738505496567,-19262.07849874,0.00011749,2]
[351278229,1738505496577,-500.0,0.00011779,2]
[351278230,1738505496587,-1549.91,0.00011779,2]
[351278231,1738505496597,-1549.91,0.00011779,2]
[351278232,1738505496608,-1549.91,0.00011779,2]
[351278233,1738505496617,-1549.91,0.00011779,2]
[351278234,1738505496627,-1549.92134163,0.00011779,2]
[351278235,1738505496637,-500.0,0.0001178,2]
[351278236,1738505496647,-513.14172486,0.0001178,2]
[351278237,1738505496657,-500.0,0.0001178,2]
[351278238,1738505496667,-559.46,0.0001178,2]
[351278239,1738505496676,-500.0,0.0001178,2]
[351278240,1738505496686,-500.0,0.0001178,2]
[351278241,1738505496696,-803.7,0.0001178,2]
[351278242,1738505496707,-500.0,0.0001178,2]
[351278243,1738505496718,-500.0,0.0001178,2]
[351278244,1738505496728,-500.0,0.0001178,2]
[351278245,1738505496738,-500.0,0.0001178,2]
[351278246,1738505496749,-801.06,0.0001178,2]
[351278247,1738505496759,-500.0,0.0001178,2]
[351278248,1738505496770,-500.0,0.0001178,2]
[351278249,1738505496779,-773.23,0.0001178,2]
[351278250,1738505496789,-500.0,0.0001178,2]
[351278251,1738505496799,-500.0,0.0001178,2]
[351278252,1738505496808,-759.9,0.0001178,2]
[351278253,1738505496818,-1260.15,0.0001178,2]
[351278254,1738505496828,-589.03,0.0001178,2]
[351278255,1738505496837,-500.0,0.0001178,2]
[351278256,1738505496847,-500.0,0.0001178,2]
[351278257,1738505496857,-500.0,0.0001178,2]
[351278258,1738505496867,-500.0,0.0001178,2]
[351278259,1738505496876,-500.0,0.0001178,2]
[351278260,1738505496885,-1063.41,0.0001178,2]
[351278261,1738505496895,-673.02,0.0001178,2]
[351278262,1738505496904,-500.0,0.0001178,2]
[351278263,1738505496914,-500.0,0.0001178,2]
[351278264,1738505496924,-500.0,0.0001178,2]
[351278265,1738505496934,-821.68,0.0001178,2]
[351278266,1738505496943,-549.88,0.0001178,2]
[351278267,1738505496954,-500.0,0.0001178,2]
[351278268,1738505496963,-500.0,0.0001178,2]
[351278269,1738505496973,-703.15,0.0001178,2]
[351278270,1738505496983,-500.0,0.0001178,2]
[351278271,1738505496993,-828.9,0.0001178,2]
[351278272,1738505497003,-627.47,0.0001178,2]
[351278273,1738505497014,-731.11,0.0001178,2]
[351278274,1738505497024,-500.0,0.0001178,2]
[351278275,1738505497033,-500.0,0.0001178,2]
[351278276,1738505497042,-500.0,0.0001178,2]
[351278277,1738505497052,-500.0,0.0001178,2]
[351278278,1738505497062,-592.69,0.0001178,2]
[351278279,1738505497072,-500.0,0.0001178,2]
[351278280,1738505497082,-193.47181418,0.0001178,2]
[351278281,1738505497092,-500.0,0.0001178,2]
[351278282,1738505497101,-151.0,0.0001178,2]
[351278283,1738505497111,-500.0,0.0001178,2]
[351278284,1738505497121,-625.97,0.0001178,2]
[351278285,1738505497131,-500.0,0.0001178,2]
[351278286,1738505497141,-500.0,0.0001178,2]
[351278287,1738505497151,-500.0,0.0001178,2]
[351278288,1738505497160,-524.30551062,0.0001178,2]
[351278289,1738505497170,-500.0,0.0001178,2]
[351278290,1738505497179,-661.86,0.0001178,2]
[351278291,1738505497189,-552.57,0.0001178,2]
[351278292,1738505497198,-3015.63,0.0001178,2]
[351278293,1738505497209,-500.0,0.0001178,2]
[351278294,1738505497219,-498.17943016,0.0001178,2]
[351278295,1738505497228,-635.12,0.0001178,2]
[351278296,1738505497238,-511.08,0.0001178,2]
[351278297,1738505497247,-1112.86,0.0001178,2]
[351278298,1738505497257,-910.85,0.0001178,2]
[351278299,1738505497267,-500.0,0.0001178,2]
[351278300,1738505497277,-500.0,0.0001178,2]
[351278301,1738505497287,-500.0,0.0001178,2]
[351278302,1738505497296,-500.0,0.0001178,2]
[351278303,1738505497306,-738.14,0.0001178,2]
[351278304,1738505497316,-500.0,0.0001178,2]
[351278305,1738505497325,-1482.76,0.0001178,2]
[351278306,1738505497335,-500.0,0.0001178,2]
[351278307,1738505497345,-500.0,0.0001178,2]
[351278308,1738505497355,-500.0,0.0001178,2]
[351278309,1738505497365,-500.0,0.0001178,2]
[351278310,1738505497375,-545.77,0.0001178,2]
[351278311,1738505497384,-500.0,0.0001178,2]
[351278312,1738505497394,-735.2,0.0001178,2]
[351278313,1738505497404,-500.0,0.0001178,2]
[351278314,1738505497414,-717.38,0.0001178,2]
[351278315,1738505497424,-500.0,0.0001178,2]
[351278316,1738505497434,-500.0,0.0001178,2]
[351278317,1738505497444,-2333.39,0.0001178,2]
[351278318,1738505497455,-618.28,0.0001178,2]
[351278319,1738505497465,-409.69287071,0.0001178,2]
[351278320,1738505497476,-500.0,0.0001178,2]
[351278321,1738505497486,-500.0,0.0001178,2]
[351278322,1738505497496,-500.0,0.0001178,2]
[351278323,1738505497505,-2305.89,0.0001178,2]
[351278324,1738505497515,-703.3,0.0001178,2]
[351278325,1738505497528,-2217.46,0.0001178,2]
[351278326,1738505497540,-573.42,0.0001178,2]
[351278327,1738505497550,-500.0,0.0001178,2]
[351278328,1738505497560,-500.0,0.0001178,2]
[351278329,1738505497570,-2053.36,0.0001178,2]
[351278330,1738505497580,-1106.04,0.0001178,2]
[351278331,1738505497590,-2139.13,0.0001178,2]
[351278332,1738505497600,-500.0,0.0001178,2]
[351278333,1738505497610,-500.0,0.0001178,2]
[351278334,1738505497620,-500.0,0.0001178,2]
[351278335,1738505497630,-1316.15,0.0001178,2]
[351278336,1738505497640,-500.0,0.0001178,2]
[351278337,1738505497649,-500.0,0.0001178,2]
[351278338,1738505497659,-500.0,0.0001178,2]
[351278339,1738505497668,-548.83,0.0001178,2]
[351278340,1738505497678,-553.21,0.0001178,2]
[351278341,1738505497688,-525.3,0.0001178,2]
[351278342,1738505497697,-500.0,0.0001178,2]
[351278343,1738505497708,-2325.54,0.0001178,2]
[351278344,1738505497718,-1109.74,0.0001178,2]
[351278345,1738505497728,-500.44,0.0001178,2]
[351278346,1738505497737,-681.73,0.0001178,2]
[351278347,1738505497747,-645.15459082,0.0001178,2]
[351278348,1738505497756,-677.93,0.0001178,2]
[351278349,1738505497766,-513.34,0.0001178,2]
[351278350,1738505497776,-500.0,0.0001178,2]
[351278351,1738505497786,-500.0,0.0001178,2]
[351278352,1738505497796,-500.0,0.0001178,2]
[351278353,1738505497806,-1154.2,0.0001178,2]
[351278354,1738505497816,-2022.69,0.0001178,2]
[351278355,1738505497827,-549.44416964,0.0001178,2]
[351278356,1738505497837,-685.35,0.0001178,2]
[351278357,1738505497847,-500.0,0.0001178,2]
[351278358,1738505497857,-500.0,0.0001178,2]
[351278359,1738505497868,-500.0,0.0001178,2]
[351278360,1738505497878,-500.0,0.0001178,2]
[351278361,1738505497889,-500.0,0.0001178,2]
[351278362,1738505497899,-550.64,0.0001178,2]
[351278363,1738505497909,-1342.11,0.0001178,2]
[351278364,1738505497919,-500.0,0.0001178,2]
[351278365,1738505497929,-2093.39,0.0001178,2]
[351278366,1738505497939,-880.18,0.0001178,2]
[351278367,1738505497949,-1643.92,0.0001178,2]
[351278368,1738505497962,-500.0,0.0001178,2]
[351278369,1738505497972,-793.33,0.0001178,2]
[351278370,1738505497982,-500.0,0.0001178,2]
[351278371,1738505497992,-500.0,0.0001178,2]
[351278372,1738505498002,-500.0,0.0001178,2]
[351278373,1738505498012,-1232.16,0.0001178,2]
[351278374,1738505498022,-500.0,0.0001178,2]
[351278375,1738505498032,-588.54,0.0001178,2]
[351278376,1738505498041,-500.0,0.0001178,2]
[351278377,1738505498051,-534.34,0.0001178,2]
[351278378,1738505498062,-538.87,0.0001178,2]
[351278379,1738505498072,-793.28,0.0001178,2]
[351278380,1738505498082,-500.0,0.0001178,2]
[351278381,1738505498091,-1592.88,0.0001178,2]
[351278382,1738505498101,-616.53,0.0001178,2]
[351278383,1738505498111,-500.0,0.0001178,2]
[351278384,1738505498121,-500.0,0.0001178,2]
[351278385,1738505498131,-1854.87,0.0001178,2]
[351278386,1738505498141,-1690.33,0.0001178,2]
[351278387,1738505498151,-500.0,0.0001178,2]
[351278388,1738505498161,-534.43,0.0001178,2]
[351278389,1738505498171,-500.0,0.0001178,2]
[351278390,1738505498181,-500.0,0.0001178,2]
[351278391,1738505498191,-500.0,0.0001178,2]
[351278392,1738505498201,-508.93,0.0001178,2]
[351278393,1738505498212,-637.72,0.0001178,2]
[351278394,1738505498222,-522.59293801,0.0001178,2]
[351278395,1738505498231,-1150.84,0.0001178,2]
[351278396,1738505498242,-508.66,0.0001178,2]
[351278397,1738505498252,-586.07,0.0001178,2]
[351278398,1738505498261,-500.0,0.0001178,2]
[351278399,1738505498271,-800.25,0.0001178,2]
[351278400,1738505498281,-731.54,0.0001178,2]
[351278401,1738505498290,-615.08555218,0.0001178,2]
[351278402,1738505498300,-1305.07,0.0001178,2]
[351278403,1738505498311,-1841.9,0.0001178,2]
[351278404,1738505498321,-734.22,0.0001178,2]
[351278405,1738505498331,-500.0,0.0001178,2]
[351278406,1738505498342,-500.0,0.0001178,2]
[351278407,1738505498352,-1731.58,0.0001178,2]
[351278408,1738505498362,-573.1,0.0001178,2]
[351278409,1738505498373,-500.0,0.0001178,2]
[351278410,1738505498383,-500.0,0.0001178,2]
[351278411,1738505498577,-1366.78,0.0001178,2]
[351278412,1738505498607,-522.52734474,0.0001178,2]
[351278413,1738505498619,-500.0,0.0001178,2]
[351278414,1738505498629,-500.0,0.0001178,2]
[351278415,1738505498638,-1447.06,0.0001178,2]
[351278416,1738505498648,-500.0,0.0001178,2]
[351278417,1738505498657,-955.56,0.0001178,2]
[351278418,1738505498667,-500.0,0.0001178,2]
[351278419,1738505498677,-521.42,0.0001178,2]
[351278420,1738505498687,-500.0,0.0001178,2]
[351278421,1738505498696,-904.27,0.0001178,2]
[351278422,1738505498706,-854.39,0.0001178,2]
[351278423,1738505498716,-500.0,0.0001178,2]
[351278424,1738505498726,-2762.56,0.0001178,2]
[351278425,1738505498735,-500.0,0.0001178,2]
[351278426,1738505498745,-372.87185261,0.0001178,2]
[351278427,1738505498754,-500.0,0.0001178,2]
[351278428,1738505498763,-666.98,0.0001178,2]
[351278429,1738505498773,-783.0,0.0001178,2]
[351278430,1738505498783,-500.0,0.0001178,2]
[351278431,1738505498792,-2104.01,0.0001178,2]
[351278432,1738505498802,-2287.85,0.0001178,2]
[351278433,1738505498811,-500.0,0.0001178,2]
[351278434,1738505498821,-944.74,0.0001178,2]
[351278435,1738505498831,-505.82,0.0001178,2]
[351278436,1738505498841,-738.27,0.0001178,2]
[351278437,1738505498850,-500.0,0.0001178,2]
[351278438,1738505498859,-1519.92,0.0001178,2]
[351278439,1738505498869,-1297.85,0.0001178,2]
[351278440,1738505498879,-500.0,0.0001178,2]
[351278441,1738505498888,-500.0,0.0001178,2]
[351278442,1738505498898,-500.0,0.0001178,2]
[351278443,1738505498907,-500.0,0.0001178,2]
[351278444,1738505498917,-500.0,0.0001178,2]
[351278445,1738505498926,-500.0,0.0001178,2]
[351278446,1738505498936,-643.77,0.0001178,2]
[351278447,1738505498946,-784.02,0.0001178,2]
[351278448,1738505498956,-500.0,0.0001178,2]
[351278449,1738505498965,-500.0,0.0001178,2]
[351278450,1738505498974,-500.0,0.0001178,2]
[351278451,1738505498984,-500.0,0.0001178,2]
[351278452,1738505498993,-334.73878528,0.0001178,2]
[351278453,1738505499003,-500.0,0.0001178,2]
[351278454,1738505499012,-500.0,0.0001178,2]
[351278455,1738505499021,-529.45,0.0001178,2]
[351278456,1738505499031,-500.0,0.0001178,2]
[351278457,1738505499041,-1418.55,0.0001178,2]
[351278458,1738505499050,-500.0,0.0001178,2]
[351278459,1738505499060,-517.07,0.0001178,2]
[351278460,1738505499069,-500.0,0.0001178,2]
[351278461,1738505499079,-2783.69,0.0001178,2]
[351278462,1738505499088,-1420.23,0.0001178,2]
[351278463,1738505499097,-1225.35,0.0001178,2]
[351278464,1738505499107,-2181.51,0.0001178,2]
[351278465,1738505499116,-500.0,0.0001178,2]
[351278466,1738505499125,-500.0,0.0001178,2]
[351278467,1738505499135,-500.0,0.0001178,2]
[351278468,1738505499144,-942.19,0.0001178,2]
[351278469,1738505499154,-507.86,0.0001178,2]
[351278470,1738505499164,-844.52,0.0001178,2]
[351278471,1738505499173,-500.0,0.0001178,2]
[351278472,1738505499183,-500.0,0.0001178,2]